fUSD/lending_fUSD_20251025
["ID","MTS","AMOUNT","RATE_DAILY","PERIOD"]
[392372757,1761407532511,-500.0,0.00036712,9]
[392372758,1761407532520,-500.0,0.00036712,9]
[392372759,1761407532529,-500.0,0.00036712,9]
[392372760,1761407532538,-546.95,0.00036712,9]
[392372761,1761407532547,-500.0,0.00036712,9]
[392372762,1761407532556,-500.0,0.00036712,9]
[392372763,1761407532565,-500.0,0.00036712,9]
[392372764,1761407532574,-433.37187928,0.00036712,9]
[392372765,1761407532583,-500.0,0.00036712,9]
[392372766,1761407532592,-527.81,0.00036712,9]
[392372767,1761407532601,-512.17,0.00036712,9]
[392372768,1761407532610,-500.0,0.00036712,9]
[392372769,1761407532619,-500.0,0.00036712,9]
[392372770,1761407532630,-500.0,0.00036712,9]
[392372771,1761407532639,-500.0,0.00036712,9]
[392372772,1761407532648,-534.68,0.00036712,9]
[392372773,1761407532658,-500.0,0.00036712,9]
[392372774,1761407532667,-500.0,0.00036712,9]
[392372775,1761407532677,-500.0,0.00036712,9]
[392372776,1761407532687,-500.0,0.00036712,9]
[392372777,1761407532697,-500.0,0.00036712,9]
[392372778,1761407532707,-271.03587091,0.00036712,9]
[392372779,1761407532716,-500.0,0.00036712,9]
[392372780,1761407532726,-500.0,0.00036712,9]
[392372781,1761407532735,-500.0,0.00036712,9]
[392372782,1761407532745,-500.0,0.00036712,13]
[392372783,1761407532755,-500.0,0.00036712,13]
[392372784,1761407532766,-500.0,0.00036712,13]
[392372785,1761407532775,-500.0,0.00036712,13]
[392372786,1761407532784,-500.0,0.00036712,13]
[392372787,1761407532793,-500.0,0.00036712,13]
[392372788,1761407532804,-500.0,0.00036712,13]
[392372789,1761407532815,-500.0,0.00036712,13]
[392372790,1761407532824,-500.0,0.00036712,9]
[392372791,1761407532835,-500.0,0.00036712,9]
[392372792,1761407532844,-500.0,0.00036712,9]
[392372793,1761407532854,-500.0,0.00036712,9]
[392372794,1761407532863,-500.0,0.00036712,9]
[392372795,1761407532873,-500.0,0.00036712,9]
[392372796,1761407532882,-500.0,0.00036712,9]
[392372797,1761407532892,-500.0,0.00036712,9]
[392372798,1761407532901,-502.39,0.00036712,9]
[392372799,1761407532910,-500.0,0.00036712,9]
[392372800,1761407532920,-500.0,0.00036712,9]
[392372801,1761407532929,-500.0,0.00036712,9]
[392372802,1761407532938,-500.0,0.00036712,9]
[392372803,1761407532947,-524.93,0.00036712,9]
[392372804,1761407532957,-500.0,0.00036712,9]
[392372805,1761407532966,-549.96089016,0.00036712,9]
[392372806,1761407532976,-500.0,0.00036712,9]
[392372807,1761407532984,-537.16,0.00036712,9]
[392372808,1761407532994,-500.0,0.00036712,9]
[392372809,1761407533003,-555.59,0.00036712,9]
[392372810,1761407533013,-294.02733757,0.00036712,9]
[392372811,1761407533022,-675.84,0.00036712,9]
[392372812,1761407533031,-395.11588964,0.00036712,9]
[392372813,1761407533040,-500.0,0.00036712,9]
[392372814,1761407533050,-500.0,0.00036712,9]
[392372815,1761407533059,-500.0,0.00036712,9]
[392372816,1761407533068,-567.53,0.00036712,9]
[392372817,1761407533077,-500.0,0.00036712,9]
[392372818,1761407533086,-500.0,0.00036712,9]
[392372819,1761407533096,-500.0,0.00036712,9]
[392372820,1761407533104,-500.0,0.00036712,9]
[392372821,1761407533113,-500.0,0.00036712,9]
[392372822,1761407533123,-500.0,0.00036712,9]
[392372823,1761407533132,-1555.41,0.00036712,9]
[392372824,1761407533141,-459.61089955,0.00036712,9]
[392372825,1761407533151,-524.68098975,0.00036712,9]
[392372826,1761407533161,-709.21,0.00036712,9]
[392372827,1761407533170,-500.0,0.00036712,9]
[392372828,1761407533181,-500.0,0.00036712,9]
[392372829,1761407533191,-500.0,0.00036712,9]
[392372830,1761407533201,-942.51,0.00036712,9]
[392372831,1761407533211,-500.0,0.00036712,9]
[392372832,1761407533221,-500.0,0.00036712,9]
[392372833,1761407533231,-15600.96,0.00036712,9]
[392372834,1761407533241,-2147.12,0.00036712,9]
[392372835,1761407533252,-500.0,0.00036712,9]
[392372836,1761407533261,-481.22236579,0.00036712,9]
[392372837,1761407533270,-528.12387631,0.00036712,9]
[392372838,1761407533280,-500.0,0.00036712,9]
[392372839,1761407533291,-602.26,0.00036712,9]
[392372840,1761407533446,-277.04604232,0.00036712,9]
[392372841,1761407533457,-553.68,0.00036712,9]
[392372842,1761407533467,-500.0,0.00036712,9]
[392372843,1761407533476,-500.0,0.00036712,9]
[392372844,1761407533487,-500.0,0.00036712,9]
[392372845,1761407533498,-500.0,0.00036712,9]
[392372846,1761407533508,-500.0,0.00036712,9]
[392372847,1761407533518,-500.0,0.00036712,9]
[392372848,1761407533527,-500.0,0.00036712,9]
[392372849,1761407533538,-1157.24,0.00036712,9]
[392372850,1761407533547,-500.0,0.00036712,9]
[392372851,1761407533557,-899.55,0.00036712,9]
[392372852,1761407533566,-500.0,0.00036712,9]
[392372853,1761407533577,-500.0,0.00036712,9]
[392372854,1761407533587,-500.0,0.00036712,9]
[392372855,1761407533596,-558.03,0.00036712,9]
[392372856,1761407533606,-657.01,0.00036712,9]
[392372857,1761407533617,-500.0,0.00036712,9]
[392372858,1761407533627,-500.0,0.00036712,9]
[392372859,1761407533637,-325.7841852,0.00036712,9]
[392372860,1761407533647,-500.0,0.00036712,9]
[392372861,1761407533656,-500.0,0.00036712,9]
[392372862,1761407533666,-358.6681219,0.00036712,9]
[392372863,1761407533676,-500.0,0.00036712,9]
[392372864,1761407533687,-500.0,0.00036712,9]
[392372865,1761407533697,-500.0,0.00036712,9]
[392372866,1761407533707,-500.0,0.00036712,9]
[392372867,1761407533716,-500.0,0.00036712,7]
[392372868,1761407533727,-500.0,0.00036712,9]
[392372869,1761407533737,-500.0,0.00036712,9]
[392372870,1761407533746,-200.47280776,0.00036712,9]
[392372871,1761407533755,-500.0,0.00036712,9]
[392372872,1761407533765,-500.0,0.00036712,9]
[392372873,1761407533775,-1103.76,0.00036712,9]
[392372874,1761407533785,-586.96,0.00036712,9]
[392372875,1761407533794,-677.29,0.00036712,9]
[392372876,1761407533804,-500.0,0.00036712,9]
[392372877,1761407533813,-500.0,0.00036712,9]
[392372878,1761407533822,-601.98,0.00036712,9]
[392372879,1761407533831,-755.77,0.00036712,9]
[392372880,1761407533841,-27349.58,0.00036712,9]
[392372881,1761407533850,-3162.18,0.00036712,9]
[392372882,1761407533860,-500.0,0.00036712,9]
[392372883,1761407533869,-285.9662631,0.00036712,9]
[392372884,1761407533878,-541.75,0.00036712,9]
[392372885,1761407533888,-500.0,0.00036712,9]
[392372886,1761407533898,-489.29579091,0.00036712,9]
[392372887,1761407533908,-500.0,0.00036712,9]
[392372888,1761407533917,-500.0,0.00036712,9]
[392372889,1761407533927,-568.48,0.00036712,9]
[392372890,1761407533936,-793.74,0.00036712,9]
[392372891,1761407533946,-612.62,0.00036712,9]
[392372892,1761407533955,-580.5,0.00036712,9]
[392372893,1761407533965,-500.0,0.00036712,9]
[392372894,1761407533974,-500.0,0.00036712,9]
[392372895,1761407533984,-512.1,0.00036712,9]
[392372896,1761407533993,-500.0,0.00036712,9]
[392372897,1761407534003,-178.93301759,0.00036712,9]
[392372898,1761407534012,-500.0,0.00036712,9]
[392372899,1761407534023,-500.0,0.00036712,9]
[392372900,1761407534032,-500.0,0.00036712,9]
[392372901,1761407534042,-500.0,0.00036712,9]
[392372902,1761407534052,-500.0,0.00036712,9]
[392372903,1761407534062,-500.0,0.00036712,9]
[392372904,1761407534072,-647.33,0.00036712,9]
[392372905,1761407534081,-500.0,0.00036712,9]
[392372906,1761407534090,-601.16,0.00036712,9]
[392372907,1761407534100,-592.84609979,0.00036712,9]
[392372908,1761407534109,-500.0,0.00036712,9]
[392372909,1761407534118,-504.95,0.00036712,9]
[392372910,1761407534127,-2016.49,0.00036712,9]
[392372911,1761407534137,-500.0,0.00036712,9]
[392372912,1761407534147,-500.0,0.00036712,9]
[392372913,1761407534156,-544.29,0.00036712,9]
[392372914,1761407534165,-500.0,0.00036712,9]
[392372915,1761407534175,-624.17,0.00036712,9]
[392372916,1761407534184,-500.0,0.00036712,9]
[392372917,1761407534193,-1578.34,0.00036712,9]
[392372918,1761407534202,-500.0,0.00036712,9]
[392372919,1761407534212,-500.0,0.00036712,9]
[392372920,1761407534222,-1038.04,0.00036712,9]
[392372921,1761407534234,-868.13,0.00036712,9]
[392372922,1761407534243,-500.0,0.00036712,9]
[392372923,1761407534253,-500.0,0.00036712,9]
[392372924,1761407534262,-917.77,0.00036712,9]
[392372925,1761407534272,-645.71,0.00036712,9]
[392372926,1761407534281,-890.81,0.00036712,9]
[392372927,1761407534290,-500.0,0.00036712,9]
[392372928,1761407534299,-216.60716032,0.00036712,9]
[392372929,1761407534308,-500.0,0.00036712,9]
[392372930,1761407534319,-500.0,0.00036712,9]
[392372931,1761407534331,-500.0,0.00036712,9]
[392372932,1761407534340,-500.0,0.00036712,9]
[392372933,1761407534350,-543.66,0.00036712,9]
[392372934,1761407534359,-500.0,0.00036712,9]
[392372935,1761407534368,-631.07012102,0.00036712,9]
[392372936,1761407534378,-500.0,0.00036712,9]
[392372937,1761407534387,-500.0,0.00036712,9]
[392372938,1761407534396,-620.95,0.00036712,9]
[392372939,1761407534405,-501.95,0.00036712,9]
[392372940,1761407534414,-500.0,0.00036712,9]
[392372941,1761407534423,-500.0,0.00036712,9]
[392372942,1761407534432,-500.0,0.00036712,9]
[392372943,1761407534441,-500.0,0.00036712,9]
[392372944,1761407534451,-6415.98,0.00036712,9]
[392372945,1761407534460,-270.31595263,0.00036712,9]
[392372946,1761407534469,-1885.41,0.00036712,9]
[392372947,1761407534478,-548.9,0.00036712,9]
[392372948,1761407534487,-628.85676823,0.00036712,9]
[392372949,1761407534497,-500.0,0.00036712,9]
[392372950,1761407534507,-1000.0,0.00036712,30]
[392372951,1761407534516,-1000.0,0.00036712,30]
[392372952,1761407534525,-1000.0,0.00036712,30]
[392372953,1761407534535,-1000.0,0.00036712,30]
[392372954,1761407534544,-1000.0,0.00036712,30]
[392372955,1761407534553,-1000.0,0.00036712,30]
[392372956,1761407534563,-1000.0,0.00036712,30]
[392372957,1761407534572,-1000.0,0.00036712,30]
[392372958,1761407534582,-1000.0,0.00036712,30]
[392372959,1761407534591,-1000.0,0.00036712,30]
[392372960,1761407534600,-1000.0,0.00036712,30]
[392372961,1761407534609,-1000.0,0.00036712,30]
[392372962,1761407534618,-1000.0,0.00036712,30]
[392372963,1761407534627,-1000.0,0.00036712,30]
[392372964,1761407534636,-1000.0,0.00036712,30]
[392372965,1761407534645,-1000.0,0.00036712,30]
[392372966,1761407534655,-1000.0,0.00036712,30]
[392372967,1761407534664,-1000.0,0.00036712,30]
[392372968,1761407534673,-1000.0,0.00036712,30]
[392372969,1761407534682,-1000.0,0.00036712,30]
[392372970,1761407534692,-1440.55815143,0.00036712,30]
[392372971,1761407534701,-233.96096714,0.00036728,120]
[392372972,1761407534710,-233.70196532,0.000368,14]
[392372973,1761407534719,-1585.18701861,0.000368,2]
[392372974,1761407534728,-500.0,0.000369,13]
[392372975,1761407534737,-200.0,0.00036971,2]
[392372976,1761407534746,-156.905914,0.00036986,9]
[392372977,1761407534756,-910.887729,0.00036986,9]
[392372978,1761407534764,-567.385756,0.00036986,9]
[392372979,1761407534774,-500.0,0.00036986,9]
[392372980,1761407534783,-500.0,0.00036986,9]
[392372981,1761407534792,-500.0,0.00036986,9]
[392372982,1761407534800,-500.0,0.00036986,9]
[392372983,1761407534809,-209.85288557,0.00036986,9]
[392372984,1761407534818,-500.0,0.00036986,9]
[392372985,1761407534827,-500.0,0.00036986,9]
[392372986,1761407534837,-431.53932938,0.00036986,9]
[392372987,1761407534846,-500.0,0.00036986,9]
[392372988,1761407534855,-500.0,0.00036986,9]
[392372989,1761407534865,-781.72,0.00036986,9]
[392372990,1761407534875,-625.09,0.00036986,9]
[392372991,1761407534884,-500.0,0.00036986,9]
[392372992,1761407534893,-500.0,0.00036986,9]
[392372993,1761407534902,-500.0,0.00036986,9]
[392372994,1761407534912,-500.0,0.00036986,9]
[392372995,1761407534922,-500.0,0.00036986,9]
[392372996,1761407534930,-500.0,0.00036986,9]
[392372997,1761407534939,-563.33,0.00036986,9]
[392372998,1761407534949,-500.0,0.00036986,9]
[392372999,1761407534958,-500.0,0.00036986,9]
[392373000,1761407534967,-346.21293202,0.00036986,9]
[392373001,1761407534976,-816.06,0.00036986,9]
[392373002,1761407534986,-500.0,0.00036986,9]
[392373003,1761407534997,-535.62161331,0.00036986,9]
[392373004,1761407535009,-500.0,0.00036986,9]
[392373005,1761407535018,-500.0,0.00036986,9]
[392373006,1761407535028,-500.0,0.00036986,9]
[392373007,1761407535038,-500.0,0.00036986,9]
[392373008,1761407535048,-589.76,0.00036986,9]
[392373009,1761407535058,-184.61465778,0.00036986,9]
[392373010,1761407535067,-500.0,0.00036986,9]
[392373011,1761407535078,-648.01,0.00036986,9]
[392373012,1761407535088,-526.85,0.00036986,9]
[392373013,1761407535098,-627.18,0.00036986,9]
[392373014,1761407535107,-500.0,0.00036986,9]
[392373015,1761407535117,-500.0,0.00036986,9]
[392373016,1761407535126,-4318.47,0.00036986,2]
[392373017,1761407535136,-500.0,0.00036986,9]
[392373018,1761407535145,-500.0,0.00036986,9]
[392373019,1761407535155,-500.0,0.00036986,9]
[392373020,1761407535164,-729.5,0.00036986,2]
[392373021,1761407535173,-500.0,0.00036986,9]
[392373022,1761407535183,-500.0,0.00036986,9]
[392373023,1761407535193,-500.0,0.00036986,9]
[392373024,1761407535202,-500.0,0.00036986,9]
[392373025,1761407535212,-546.95,0.00036986,9]
[392373026,1761407535222,-500.0,0.00036986,9]
[392373027,1761407535231,-500.0,0.00036986,9]
[392373028,1761407535241,-500.0,0.00036986,9]
[392373029,1761407535250,-500.0,0.00036986,9]
[392373030,1761407535260,-527.81,0.00036986,9]
[392373031,1761407535270,-512.17,0.00036986,9]
[392373032,1761407535280,-500.0,0.00036986,9]
[392373033,1761407535290,-500.0,0.00036986,9]
[392373034,1761407535299,-500.0,0.00036986,9]
[392373035,1761407535308,-299.90028996,0.00036986,9]
[392373036,1761407535318,-534.68,0.00036986,9]
[392373037,1761407535327,-500.0,0.00036986,9]
[392373038,1761407535337,-500.0,0.00036986,9]
[392373039,1761407535348,-500.0,0.00036986,9]
[392373040,1761407535357,-500.0,0.00036986,9]
[392373041,1761407535367,-500.0,0.00036986,9]
[392373042,1761407535376,-500.0,0.00036986,9]
[392373043,1761407535387,-160.71971759,0.00036986,9]
[392373044,1761407535397,-500.0,0.00036986,9]
[392373045,1761407535407,-500.0,0.00036986,9]
[392373046,1761407535417,-500.0,0.00036986,9]
[392373047,1761407535427,-500.0,0.00036986,9]
[392373048,1761407535436,-500.0,0.00036986,9]
[392373049,1761407535447,-500.0,0.00036986,9]
[392373051,1761407535457,-563.62289227,0.00036986,9]
[392373052,1761407535467,-500.0,0.00036986,9]
[392373053,1761407535477,-599.14621136,0.00036986,9]
[392373054,1761407535487,-502.39,0.00036986,9]
[392373055,1761407535498,-500.0,0.00036986,9]
[392373056,1761407535507,-500.0,0.00036986,9]
[392373057,1761407535516,-500.0,0.00036986,9]
[392373058,1761407535526,-500.0,0.00036986,9]
[392373059,1761407535536,-524.93,0.00036986,9]
[392373060,1761407535546,-500.0,0.00036986,9]
[392373061,1761407535556,-500.0,0.00036986,9]
[392373062,1761407535566,-537.16,0.00036986,9]
[392373063,1761407535575,-500.0,0.00036986,9]
[392373064,1761407535587,-555.59,0.00036986,9]
[392373065,1761407535597,-675.84,0.00036986,9]
[392373066,1761407535607,-500.0,0.00036986,9]
[392373067,1761407535617,-500.0,0.00036986,9]
[392373068,1761407535626,-500.0,0.00036986,9]
[392373069,1761407535636,-567.53,0.00036986,9]
[392373070,1761407535645,-500.0,0.00036986,9]
[392373071,1761407535655,-500.0,0.00036986,9]
[392373072,1761407535666,-500.0,0.00036986,9]
[392373073,1761407535676,-500.0,0.00036986,9]
[392373074,1761407535687,-500.0,0.00036986,9]
[392373075,1761407535697,-500.0,0.00036986,9]
[392373076,1761407535707,-1555.41,0.00036986,9]
[392373077,1761407535859,-709.21,0.00036986,9]
[392373078,1761407535869,-349.42845343,0.00036986,9]
[392373079,1761407535879,-500.0,0.00036986,9]
[392373080,1761407535889,-500.0,0.00036986,9]
[392373081,1761407535898,-942.51,0.00036986,9]
[392373082,1761407535909,-500.0,0.00036986,9]
[392373083,1761407535919,-500.0,0.00036986,9]
[392373084,1761407535929,-15600.96,0.00036986,9]
[392373085,1761407535938,-2147.12,0.00036986,9]
[392373086,1761407535948,-500.0,0.00036986,9]
[392373087,1761407535959,-500.0,0.00036986,9]
[392373088,1761407535969,-602.26,0.00036986,9]
[392373089,1761407535980,-553.68,0.00036986,9]
[392373090,1761407535990,-500.0,0.00036986,9]
[392373091,1761407536000,-500.0,0.00036986,9]
[392373092,1761407536009,-500.0,0.00036986,9]
[392373093,1761407536019,-521.82724586,0.00036986,9]
[392373094,1761407536028,-500.0,0.00036986,9]
[392373095,1761407536038,-500.0,0.00036986,9]
[392373096,1761407536048,-500.0,0.00036986,9]
[392373097,1761407536058,-1157.24,0.00036986,9]
[392373098,1761407536067,-899.55,0.00036986,9]
[392373099,1761407536081,-500.0,0.00036986,9]
[392373100,1761407536090,-500.0,0.00036986,9]
[392373101,1761407536100,-500.0,0.00036986,9]
[392373102,1761407536110,-500.0,0.00036986,9]
[392373103,1761407536119,-558.03,0.00036986,9]
[392373104,1761407536128,-657.01,0.00036986,9]
[392373105,1761407536137,-500.0,0.00036986,9]
[392373106,1761407536147,-500.0,0.00036986,9]
[392373107,1761407536156,-500.0,0.00036986,9]
[392373108,1761407536166,-500.0,0.00036986,9]
[392373109,1761407536175,-500.0,0.00036986,9]
[392373110,1761407536184,-500.0,0.00036986,9]
[392373111,1761407536194,-500.0,0.00036986,9]
[392373112,1761407536203,-500.0,0.00036986,9]
[392373113,1761407536213,-500.0,0.00036986,7]
[392373114,1761407536223,-500.0,0.00036986,9]
[392373115,1761407536233,-500.0,0.00036986,9]
[392373116,1761407536243,-500.0,0.00036986,9]
[392373117,1761407536252,-191.11880207,0.00036986,9]
[392373118,1761407536262,-1103.76,0.00036986,9]
[392373119,1761407536273,-586.96,0.00036986,9]
[392373120,1761407536282,-677.29,0.00036986,9]
[392373121,1761407536293,-500.0,0.00036986,9]
[392373122,1761407536302,-500.0,0.00036986,9]
[392373123,1761407536312,-601.98,0.00036986,9]
[392373124,1761407536324,-27349.58,0.00036986,9]
[392373125,1761407536334,-755.77,0.00036986,9]
[392373126,1761407536343,-3162.18,0.00036986,9]
[392373127,1761407536353,-500.0,0.00036986,9]
[392373128,1761407536364,-541.75,0.00036986,9]
[392373129,1761407536376,-155.32783601,0.00036986,9]
[392373130,1761407536386,-500.0,0.00036986,9]
[392373131,1761407536396,-500.0,0.00036986,9]
[392373132,1761407536407,-568.48,0.00036986,9]
[392373133,1761407536417,-793.74,0.00036986,9]
[392373134,1761407536427,-612.62,0.00036986,9]
[392373135,1761407536439,-580.5,0.00036986,9]
[392373136,1761407536449,-500.0,0.00036986,9]
[392373137,1761407536459,-500.0,0.00036986,9]
[392373138,1761407536468,-512.1,0.00036986,9]
[392373139,1761407536479,-500.0,0.00036986,9]
[392373140,1761407536489,-500.0,0.00036986,9]
[392373141,1761407536498,-500.0,0.00036986,9]
[392373142,1761407536508,-181.07893991,0.00036986,9]
[392373143,1761407536520,-500.0,0.00036986,9]
[392373144,1761407536529,-500.0,0.00036986,9]
[392373145,1761407536539,-500.0,0.00036986,9]
[392373146,1761407536548,-500.0,0.00036986,9]
[392373147,1761407536557,-647.33,0.00036986,9]
[392373148,1761407536566,-601.16,0.00036986,9]
[392373149,1761407536577,-499.50433769,0.00036986,9]
[392373150,1761407536587,-504.95,0.00036986,9]
[392373151,1761407536596,-2016.49,0.00036986,9]
[392373152,1761407536605,-578.53508709,0.00036986,9]
[392373153,1761407536616,-500.0,0.00036986,9]
[392373154,1761407536625,-544.29,0.00036986,9]
[392373155,1761407536635,-500.0,0.00036986,9]
[392373156,1761407536644,-624.17,0.00036986,9]
[392373157,1761407536653,-500.0,0.00036986,9]
[392373158,1761407536662,-1578.34,0.00036986,9]
[392373159,1761407536672,-500.0,0.00036986,9]
[392373160,1761407536681,-500.0,0.00036986,9]
[392373161,1761407536690,-1038.04,0.00036986,9]
[392373162,1761407536700,-868.13,0.00036986,9]
[392373163,1761407536709,-500.0,0.00036986,9]
[392373164,1761407536719,-500.0,0.00036986,9]
[392373165,1761407536729,-917.77,0.00036986,9]
[392373166,1761407536738,-645.71,0.00036986,9]
[392373167,1761407536747,-890.81,0.00036986,9]
[392373168,1761407536757,-500.0,0.00036986,9]
[392373169,1761407536767,-248.60921358,0.00036986,9]
[392373170,1761407536776,-500.0,0.00036986,9]
[392373171,1761407536786,-500.0,0.00036986,9]
[392373172,1761407536795,-350.71267672,0.00036986,9]
[392373173,1761407536805,-543.66,0.00036986,9]
[392373174,1761407536814,-500.0,0.00036986,9]
[392373175,1761407536823,-500.0,0.00036986,9]
[392373176,1761407536832,-326.73607717,0.00036986,9]
[392373177,1761407536842,-620.95,0.00036986,9]
[392373178,1761407536851,-501.95,0.00036986,9]
[392373179,1761407536860,-500.0,0.00036986,9]
[392373180,1761407536870,-999.0,0.00036986,120]
[392373181,1761407536880,-500.0,0.00036986,9]
[392373182,1761407536889,-500.0,0.00036986,9]
[392373183,1761407536899,-500.0,0.00036986,9]
[392373184,1761407536908,-6415.98,0.00036986,9]
[392373185,1761407536916,-1885.41,0.00036986,9]
[392373186,1761407536927,-548.9,0.00036986,9]
[392373187,1761407536936,-500.0,0.00036986,9]
[392373188,1761407536945,-153288.13218179,0.00037,3]
[392373189,1761407536955,-250.0,0.00037,7]
[392373190,1761407536964,-40959.68168386,0.00037,4]
[392373191,1761407536973,-188.09947517,0.00037,2]
[392373192,1761407536982,-1339.77,0.00037,30]
[392373193,1761407536992,-292.54214066,0.00037,120]
[392373194,1761407537001,-813.82215,0.0003706,2]
[392373195,1761407537010,-150.0,0.00037072,120]
[392373196,1761407537019,-1443.15557519,0.000371,120]
[392373197,1761407537029,-476.4830027,0.000371,3]
[392373198,1761407537038,-3669.98,0.000372,2]
[392373199,1761407537047,-166.39397565,0.000372,120]
[392373200,1761407537056,-166.39397565,0.000372,120]
[392373201,1761407537066,-166.39397565,0.000372,120]
[392373202,1761407537076,-166.39397565,0.000372,120]
[392373203,1761407537085,-1200.0,0.00037223,7]
[392373204,1761407537094,-500.0,0.00037223,7]
[392373205,1761407537104,-156.905914,0.0003726,9]
[392373206,1761407537113,-910.887729,0.0003726,9]
[392373207,1761407537122,-567.385756,0.0003726,9]
[392373208,1761407537131,-500.0,0.0003726,9]
[392373209,1761407537140,-500.0,0.0003726,9]
[392373210,1761407537149,-500.0,0.0003726,9]
[392373211,1761407537158,-500.0,0.0003726,9]
[392373212,1761407537167,-215.58193385,0.0003726,9]
[392373213,1761407537175,-469.40343951,0.0003726,9]
[392373214,1761407537184,-558.12434244,0.0003726,9]
[392373215,1761407537194,-500.0,0.0003726,9]
[392373216,1761407537203,-781.72,0.0003726,9]
[392373217,1761407537212,-625.09,0.0003726,9]
[392373218,1761407537221,-500.0,0.0003726,9]
[392373219,1761407537231,-500.0,0.0003726,9]
[392373220,1761407537243,-500.0,0.0003726,9]
[392373221,1761407537254,-500.0,0.0003726,9]
[392373222,1761407537264,-248.79398444,0.0003726,9]
[392373223,1761407537275,-500.0,0.0003726,9]
[392373224,1761407537284,-563.33,0.0003726,9]
[392373225,1761407537294,-500.0,0.0003726,9]
[392373226,1761407537304,-514.76574291,0.0003726,9]
[392373227,1761407537314,-816.06,0.0003726,9]
[392373228,1761407537325,-500.0,0.0003726,9]
[392373229,1761407537337,-500.0,0.0003726,9]
[392373230,1761407537347,-500.0,0.0003726,9]
[392373231,1761407537357,-167.11387693,0.0003726,9]
[392373232,1761407537367,-500.0,0.0003726,9]
[392373233,1761407537377,-589.76,0.0003726,9]
[392373234,1761407537388,-500.0,0.0003726,9]
[392373235,1761407537399,-648.01,0.0003726,9]
[392373236,1761407537409,-526.85,0.0003726,9]
[392373237,1761407537419,-627.18,0.0003726,9]
[392373238,1761407537429,-500.0,0.0003726,9]
[392373239,1761407537438,-500.0,0.0003726,9]
[392373240,1761407537448,-4318.47,0.0003726,2]
[392373241,1761407537458,-500.0,0.0003726,9]
[392373242,1761407537467,-500.0,0.0003726,9]
[392373243,1761407537477,-507.67335348,0.0003726,9]
[392373244,1761407537486,-729.5,0.0003726,2]
[392373245,1761407537495,-500.0,0.0003726,9]
[392373246,1761407537504,-500.0,0.0003726,9]
[392373247,1761407537513,-544.96612202,0.0003726,9]
[392373248,1761407537522,-500.0,0.0003726,9]
[392373249,1761407537531,-546.95,0.0003726,9]
[392373250,1761407537540,-424.9604317,0.0003726,9]
[392373251,1761407537549,-500.0,0.0003726,9]
[392373252,1761407537559,-500.0,0.0003726,9]
[392373253,1761407537568,-500.0,0.0003726,9]
[392373254,1761407537577,-527.81,0.0003726,9]
[392373255,1761407537586,-512.17,0.0003726,9]
[392373256,1761407537595,-500.0,0.0003726,9]
[392373258,1761407537604,-508.39145988,0.0003726,9]